bitfinex-derivatives/quotes_ETHF0:USTF0_20250616
["timestamp","ask_amount","ask_price","bid_price","bid_amount"]
[1750092369575,0.75989,2631.0,2630.9,1.43707]
[1750092369971,0.75992,2630.8,2630.7,0.00569703]
[1750092370175,24.58792,2630.9,2630.7,0.00569703]
[1750092370469,24.58792,2630.9,2630.8,0.75992]
[1750092370470,24.5879,2630.9,2630.8,0.75992]
[1750092370673,0.75984,2631.1,2631.0,0.75987]
[1750092370978,24.58484,2631.1,2631.0,0.75987]
[1750092371175,0.7599,2631.0,2630.9,0.75987]
[1750092371868,24.58486,2631.1,2631.0,0.75987]
[1750092372070,6.31169703,2631.2,2630.8,3.2078]
[1750092372071,6.31169703,2631.2,2631.1,0.75984]
[1750092372276,0.76550703,2631.2,2631.1,0.75984]
[1750092372574,0.76552703,2631.2,2631.1,0.75984]
[1750092373274,0.76550703,2631.2,2631.1,0.75984]
[1750092373471,0.75988,2631.1,2631.0,0.75985]
[1750092373673,0.7599,2631.0,2630.9,0.75988]
[1750092373981,0.7599,2631.0,2630.7,1.90557703]
[1750092373982,0.75986,2631.1,2631.0,0.75984]
[1750092374578,0.75992,2630.8,2630.7,3.97341703]
[1750092375083,0.75992,2630.8,2630.7,0.76561703]
[1750092375276,0.75992,2630.8,2630.7,0.00569703]
[1750092375979,30.93392,2630.8,2630.7,0.00569703]
[1750092376368,30.93392,2630.8,2630.7,0.76564703]
[1750092377281,34.14172,2630.8,2630.7,0.76564703]
[1750092378378,10.27472,2630.8,2630.7,0.76564703]
[1750092378580,34.12472,2630.8,2630.7,0.76564703]
[1750092378781,0.6622,2631.0,2630.9,0.7599]
[1750092378976,30.152,2631.0,2630.9,0.7599]
[1750092379471,1.43616,2631.1,2631.0,0.75987]
[1750092379678,0.76552703,2631.2,2631.1,0.75984]
[1750092379876,0.76551703,2631.2,2631.1,0.75984]
[1750092380075,30.15669703,2631.2,2631.1,0.75984]
[1750092380276,6.31269703,2631.2,2631.1,0.75984]
[1750092380476,30.15669703,2631.2,2631.1,0.75984]
[1750092380882,30.91650703,2631.2,2631.1,0.75984]
[1750092381986,0.75987,2631.1,2631.0,0.75984]
[1750092383083,0.00569703,2631.2,2631.1,0.75984]
[1750092383284,0.76550703,2631.2,2631.1,0.75984]
[1750092383484,0.75986,2631.1,2631.0,0.75985]
[1750092383985,0.75986,2631.1,2630.8,1.2715]
[1750092383986,6.307,2631.1,2630.8,1.2715]
[1750092384286,0.75992,2630.8,2630.7,0.07307109]
[1750092384486,24.64792,2630.8,2630.7,0.07307109]
[1750092384683,26.00712,2630.8,2630.7,0.07307109]
[1750092384878,26.00712,2630.8,2630.1,5.10809]
[1750092384879,26.20250537,2630.8,2630.2,0.6785]
[1750092385086,0.76007,2630.3,2630.2,1.4386]
[1750092385388,24.65507,2630.3,2630.2,1.4386]
[1750092385979,24.65507,2630.3,2629.8,6.36263]
[1750092385980,0.76018,2630.0,2629.9,0.76016]
[1750092386187,32.18264546,2630.0,2629.9,1.43868]
[1750092386484,32.18264546,2630.0,2629.5,1.90073]
[1750092386485,0.76027,2629.6,2629.5,3.96809]
[1750092386686,0.76027,2629.6,2629.5,3.2078]
[1750092386886,0.76033,2629.4,2629.3,0.6785]
[1750092387093,24.65633,2629.4,2629.3,0.6785]
[1750092387281,0.76036,2629.3,2629.2,0.6394]
[1750092387492,7.53046546,2629.3,2628.8,5.1406]
[1750092387685,7.53046546,2629.3,2629.1,0.7604]
[1750092387989,23.896,2629.4,2629.2,0.76039]
[1750092388175,23.896,2629.4,2628.8,5.1406]
[1750092388382,25.1325,2629.4,2628.9,0.07607744]
[1750092388587,25.1325,2629.4,2629.0,0.76043]
[1750092388788,0.76038,2629.3,2629.1,0.76041]
[1750092389178,0.76043,2629.1,2628.9,0.07607744]
[1750092389390,23.883,2629.0,2628.9,0.83653744]
[1750092390283,24.64344,2629.0,2628.9,0.07607744]
[1750092390584,23.878,2629.0,2628.9,0.07607744]
[1750092390786,24.63844,2629.0,2628.9,0.07607744]
[1750092391184,24.63844,2629.0,2628.4,3.2078]
[1750092391185,38.41580546,2629.0,2628.4,3.2078]
[1750092391484,38.41580546,2629.0,2627.9,1.90187]
[1750092391485,0.89697971,2628.0,2627.9,3.96856]
[1750092391686,9.71e-06,2628.0,2627.9,3.96856]
[1750092391879,30.192,2628.7,2628.6,0.76056]
[1750092393088,0.00569703,2628.9,2628.8,0.7605]
[1750092393492,6.31,2629.5,2628.9,1.90112]
[1750092393690,23.892,2629.4,2629.3,0.76036]
[1750092393894,6.31,2629.5,2629.4,0.76033]
[1750092394188,6.31,2629.5,2629.0,0.6803]
[1750092394395,6.31,2629.5,2629.4,0.76033]
[1750092394690,6.31569703,2629.5,2629.4,0.76033]
[1750092394892,30.96999703,2629.5,2629.4,0.76033]
[1750092395288,0.00569703,2629.5,2629.4,0.76033]
[1750092395691,23.89169703,2629.5,2629.4,0.76033]
[1750092396190,24.65199703,2629.5,2629.4,0.76033]
[1750092396386,24.65199703,2629.5,2629.3,0.76034]
[1750092396387,0.76035,2629.4,2629.3,0.76034]
[1750092396689,23.89169703,2629.5,2629.4,0.76033]
[1750092396887,0.00569703,2629.5,2629.4,0.76033]
[1750092397096,23.88669703,2629.5,2629.4,0.76033]
[1750092397296,0.00569703,2629.5,2629.4,0.76033]
[1750092399090,0.00569703,2629.5,2629.4,5.76033]
[1750092399299,0.7601,2630.2,2630.1,0.7601]
[1750092399499,0.7601,2630.2,2629.8,1.90053]
[1750092399500,10.266,2630.4,2629.9,1.90047]
[1750092399695,10.266,2630.4,2630.3,0.76007]
[1750092399696,34.148,2630.4,2630.3,0.76007]
[1750092399900,0.76008,2630.3,2630.2,0.76007]
[1750092400392,34.24586,2630.4,2630.3,0.76007]
[1750092400790,3.96784,2630.4,2630.3,0.76007]
[1750092400994,3.2078,2630.4,2630.3,0.76007]
[1750092401201,3.2078,2630.4,2630.0,3.19854]
[1750092401202,3.2078,2630.4,2630.0,1.2982]
[1750092401402,0.76013,2630.1,2630.0,1.2982]
[1750092401797,3.2078,2630.4,2630.0,1.2982]
[1750092402091,3.96785,2630.4,2630.3,0.76007]
[1750092402295,3.2078,2630.4,2630.3,0.76007]
[1750092402700,3.2078,2630.4,2630.3,13.29053546]
[1750092402898,53.15777703,2630.5,2630.4,0.76004]
[1750092403199,53.15777703,2630.5,2630.4,8.29050546]
[1750092403401,53.15777703,2630.5,2630.4,13.29050546]
[1750092403800,53.15777703,2630.5,2630.4,12.15704]
[1750092404604,53.15777703,2630.5,2630.4,0.76004]
[1750092404901,53.15777703,2630.5,2630.4,7.15604]
[1750092405300,53.15777703,2630.5,2630.4,0.76004]
[1750092406398,53.91778703,2630.5,2630.4,0.76004]
[1750092406900,0.76006,2630.4,2630.3,0.76004]
[1750092407102,24.61906,2630.4,2630.3,0.76004]
[1750092407699,27.0668,2630.4,2630.3,0.76004]
[1750092407900,3.2078,2630.4,2630.3,0.76004]
[1750092408205,53.15777703,2630.5,2630.4,0.76004]
[1750092410409,53.91778703,2630.5,2630.4,0.76004]
[1750092410598,53.15777703,2630.5,2630.4,0.76004]
[1750092411203,53.15777703,2630.5,2630.4,0.82741406]
[1750092412006,43.3086961,2630.5,2630.4,5.82741406]
[1750092412516,43.3086961,2630.5,2630.4,0.82741406]
[1750092413111,43.3086961,2630.5,2630.4,5.82741406]
[1750092413607,43.3086961,2630.5,2630.4,8.45911406]
[1750092415401,43.3086961,2630.5,2630.4,2.06411406]
[1750092415603,43.3086961,2630.5,2630.4,0.82741406]
[1750092417011,44.0687061,2630.5,2630.4,0.82741406]
[1750092417206,43.3086961,2630.5,2630.4,0.82741406]
[1750092417910,67.9117061,2630.5,2630.4,0.82741406]
[1750092418113,69.1554061,2630.5,2630.4,0.06737406]
[1750092418414,0.76014,2630.1,2630.0,0.76012]
[1750092418619,3.96794,2630.1,2630.0,0.76012]
[1750092418909,3.96792,2630.1,2630.0,0.76012]
[1750092419512,3.2078,2630.1,2630.0,0.76012]
[1750092420303,27.0508,2630.1,2630.0,0.76012]
[1750092420609,27.81092,2630.1,2630.0,0.76012]
[1750092420808,28.2945,2630.1,2630.0,0.76012]
[1750092421207,29.05462,2630.1,2630.0,0.76012]
[1750092421717,4.4515,2630.1,2630.0,0.76012]
[1750092421912,43.3086961,2630.5,2630.2,0.7601]
[1750092422114,43.3086961,2630.5,2630.4,0.76004]
[1750092422307,43.3086961,2630.5,2630.4,0.82741406]
[1750092423915,43.24132203,2630.5,2630.4,7.15741406]
[1750092424513,43.24132203,2630.5,2630.4,2.09004]
[1750092425518,43.24132203,2630.5,2630.4,0.76004]
[1750092431822,43.24132203,2630.5,2630.4,8.29050546]
[1750092432417,43.24132203,2630.5,2630.4,0.76004]
[1750092435325,0.00569703,2630.5,2630.4,0.76004]
[1750092435826,0.00569703,2630.5,2630.4,2.06634]
[1750092437222,2.26129707,2631.4,2630.4,6.3063]
[1750092437524,1.2805,2631.9,2631.8,0.75963]
[1750092437719,1.2745,2632.2,2631.9,0.7596]
[1750092437921,1.2745,2632.2,2631.8,1.89909]
[1750092438120,1.2745,2632.2,2632.1,0.75955]
[1750092438421,27.2931204,2632.2,2632.1,0.75955]
[1750092438730,2.555,2632.2,2632.1,0.75955]
[1750092439526,2.555,2632.2,2631.9,0.00569703]
[1750092439829,3.31454,2632.2,2632.0,0.75955]
[1750092440032,3.31454,2632.2,2632.1,0.75955]
[1750092440033,2.555,2632.2,2632.1,0.75955]
[1750092440423,1.9106,2632.2,2632.1,0.75955]
[1750092440623,0.6301,2632.2,2632.1,0.75955]
[1750092441627,0.6301,2632.2,2631.9,0.00569703]
[1750092441831,1.2632,2632.1,2632.0,0.75958]
[1750092442130,2.02275,2632.1,2632.0,0.75958]
[1750092442333,0.75958,2632.0,2631.9,0.76527703]
[1750092442732,2.02276,2632.1,2632.0,0.75958]
[1750092443234,0.75958,2632.0,2631.9,0.76528703]
[1750092444034,0.75958,2632.0,2631.9,0.00569703]
[1750092444330,0.75958,2632.0,2631.1,3.96762]
[1750092444331,0.75981,2631.2,2631.1,3.96762]
[1750092445627,0.75979,2631.3,2631.2,0.75979]
[1750092445933,24.9711,2631.5,2631.2,0.75979]
[1750092446238,24.9711,2631.5,2631.1,3.2078]
[1750092446534,24.9711,2631.5,2630.9,0.00569703]
[1750092446535,0.75986,2631.0,2630.9,0.00569703]
[1750092446733,0.75986,2631.1,2631.0,0.75986]
[1750092447435,0.75986,2631.0,2630.9,0.76557703]
[1750092447735,0.75986,2631.1,2630.9,6.35569703]
[1750092448037,0.6193,2631.2,2631.1,0.75984]
[1750092448440,1.37911,2631.2,2631.1,0.75984]
[1750092448731,0.6193,2631.2,2631.1,0.75984]
[1750092449139,3.2078,2631.6,2631.0,1.89967]
[1750092449343,3.2078,2631.6,2631.5,0.75972]
[1750092449730,3.21349703,2632.4,2631.7,1.89916]
[1750092449942,1.43383,2632.2,2632.0,0.75955]
[1750092450139,0.6743,2632.2,2632.1,0.75955]
[1750092450327,0.6743,2632.2,2631.7,7.53046546]
[1750092450641,0.75956,2632.1,2631.9,0.75958]
[1750092450835,0.75956,2632.1,2632.0,0.75958]
[1750092451039,2.75073,2632.2,2632.0,0.75958]
[1750092451641,2.75073,2632.2,2632.0,0.75955]
[1750092451938,0.75955,2632.1,2632.0,0.75955]
[1750092452140,0.75955,2632.1,2631.8,6.35]
[1750092452442,0.75957,2632.1,2632.0,0.75957]
[1750092452638,2.04847,2632.1,2632.0,0.75957]
[1750092453040,5.25627,2632.1,2632.0,0.75957]
[1750092453341,4.4967,2632.1,2631.4,6.9968]
[1750092453538,0.75962,2631.9,2631.8,0.75962]
[1750092453838,0.75965,2631.8,2631.7,0.75965]
[1750092454338,0.75963,2631.9,2631.8,0.75963]
[1750092454533,4.4967,2632.1,2631.4,16.42663546]
[1750092454744,0.75963,2631.9,2631.8,0.75962]
[1750092458645,0.75966,2631.8,2631.7,0.75965]
[1750092458944,0.7597,2631.6,2631.5,0.75968]
[1750092460053,1.9971,2631.6,2631.5,0.75968]
[1750092460847,0.75977,2631.5,2631.4,0.75973]
[1750092461248,1.41317,2631.5,2631.4,0.75973]
[1750092462951,0.75981,2631.3,2631.2,0.75976]
[1750092463549,1.3594,2631.4,2631.1,6.946]
[1750092463550,0.75984,2631.2,2631.1,0.75981]
[1750092464350,0.75983,2631.2,2631.1,0.7598]
[1750092465041,0.7598,2631.3,2631.2,0.75978]
[1750092465254,2.048,2631.3,2631.2,0.75978]
[1750092465659,0.75984,2631.2,2631.1,0.75982]
[1750092467158,3.8612,2631.5,2631.0,1.89966]
[1750092467458,0.75975,2631.4,2631.3,0.75976]
[1750092467857,0.75981,2631.3,2631.2,0.75979]
[1750092469260,0.75977,2631.4,2631.3,0.75975]
[1750092469857,3.8612,2631.5,2631.4,0.75975]
[1750092470359,3.2078,2631.8,2631.7,0.75966]
[1750092471361,3.2078,2631.8,2631.7,2.10566]
[1750092471563,96.668325,2632.1,2632.0,0.75958]
[1750092471861,95.908765,2632.1,2632.0,7.05558]
[1750092472066,95.908765,2632.1,2632.0,12.05558]
[1750092472255,95.908765,2632.1,2632.0,14.73828]
[1750092473356,95.908765,2632.1,2632.0,8.44228]
[1750092473564,95.908765,2632.1,2632.0,14.73728]
[1750092474662,95.908765,2632.1,2632.0,9.73728]
[1750092475563,95.908765,2632.1,2632.0,14.73728]
[1750092475564,94.902315,2632.1,2632.0,14.73728]
[1750092475764,93.875775,2632.1,2632.0,14.73728]
[1750092475959,92.802535,2632.1,2632.0,14.73728]
[1750092476355,91.705265,2632.1,2632.0,14.73728]
[1750092476557,90.479935,2632.1,2632.0,14.73728]
[1750092476751,90.479935,2632.1,2632.0,38.40928]
[1750092477151,54.18686764,2632.1,2632.0,38.40928]
[1750092477351,46.69380954,2632.1,2632.0,38.40928]
[1750092477572,42.8523701,2632.1,2632.0,12.21553794]
[1750092477760,41.5717501,2632.1,2632.0,18.51053794]
[1750092477959,41.5717501,2632.1,2632.0,42.20253794]
[1750092478259,38.2252701,2632.1,2632.0,42.20653794]
[1750092478562,36.0974601,2632.1,2632.0,42.20653794]
[1750092478863,34.6606901,2632.1,2632.0,38.43328]
[1750092479056,31.9047901,2632.1,2632.0,38.43328]
[1750092479256,30.7025301,2632.1,2632.0,38.43328]
[1750092479767,29.0718501,2632.1,2632.0,38.43328]
[1750092479966,27.3854501,2632.1,2632.0,38.43328]
[1750092480161,9.01433997,2632.1,2632.0,38.43328]
[1750092480357,6.10651997,2632.1,2632.0,38.43328]
[1750092480564,1.22260997,2632.1,2632.0,38.43328]
[1750092481065,0.30237997,2632.1,2632.0,38.43328]
[1750092481264,9.97e-06,2632.1,2632.0,38.43328]
[1750092481558,9.97e-06,2632.1,2632.0,8.44228]
[1750092481762,9.97e-06,2632.1,2632.0,9.05948]
[1750092481966,9.97e-06,2632.1,2632.0,32.72448]
[1750092482865,9.97e-06,2632.1,2632.0,32.73848]
[1750092483068,9.97e-06,2632.1,2632.0,31.38848]
[1750092483671,9.97e-06,2632.1,2632.0,15.24294546]
[1750092483870,9.97e-06,2632.1,2632.0,38.91494546]
[1750092484879,9.97e-06,2632.1,2632.0,31.38648]
[1750092485374,9.97e-06,2632.1,2632.0,1.41948]
[1750092485577,9.97e-06,2632.1,2632.0,31.44285406]
[1750092485769,9.97e-06,2632.1,2632.0,1.48685406]
[1750092486171,9.97e-06,2632.1,2632.0,0.82695406]
[1750092486469,7.59864077,2632.1,2632.0,6.36037406]
[1750092486674,12.59864077,2632.1,2632.0,0.06737406]
[1750092486874,13.35819077,2632.1,2632.0,0.06737406]
[1750092487475,7.59864077,2632.1,2632.0,0.82695406]
[1750092487672,8.35819077,2632.1,2632.0,0.82695406]
[1750092487975,10.22939077,2632.1,2632.0,0.82695406]
[1750092488380,9.46984077,2632.1,2632.0,0.82695406]
[1750092489275,9.46984077,2632.1,2631.5,46.9838]
[1750092489472,7.5986308,2631.7,2631.6,7.02269]
[1750092490678,0.75959,2632.0,2631.6,7.02269]
[1750092490679,9.40167543,2632.1,2632.0,0.75958]
[1750092490882,9.97e-06,2632.1,2632.0,7.02258]
[1750092491776,7.59864077,2632.1,2632.0,6.33037406]
[1750092491976,9.58769077,2632.1,2632.0,0.06737406]
[1750092492482,0.75961,2631.9,2631.8,6.263]
[1750092492692,0.75963,2631.8,2631.7,6.263]
[1750092492888,10.2038608,2631.8,2631.7,6.263]
[1750092493189,9.4442308,2631.8,2631.7,7.02266]
[1750092493397,8.2147308,2631.8,2631.7,7.02266]
[1750092493886,8.2147308,2631.8,2631.7,0.75966]
[1750092494191,8.2147308,2631.8,2631.7,7.02266]
[1750092495090,8.9743608,2631.8,2631.7,7.02266]
[1750092495292,10.2464608,2631.8,2631.7,7.02266]
[1750092495492,9.4868308,2631.8,2631.7,7.02266]
[1750092496199,8.2147308,2631.8,2631.7,7.02266]
[1750092496790,0.6161,2631.8,2631.7,7.02266]
[1750092497186,0.6161,2631.8,2631.7,0.75966]
[1750092498798,8.2147308,2631.8,2631.6,30.65167]
[1750092498998,8.9413308,2631.7,2631.6,30.65167]
[1750092499500,1.3427,2631.7,2631.6,30.65167]
[1750092499794,8.9413308,2631.7,2631.5,46.9838]
[1750092500001,7.5986308,2631.6,2631.4,6.264]
[1750092500195,1.3427,2631.5,2631.4,7.02375]
[1750092500499,9.5603308,2631.5,2631.4,7.02375]
[1750092501193,9.5603308,2631.5,2631.4,0.75975]
[1750092501699,9.5603308,2631.5,2631.3,30.64275]
[1750092501901,7.5986308,2631.4,2631.3,30.64275]
[1750092502198,3.2078,2633.1,2631.8,0.75963]
[1750092502391,0.6232,2633.2,2632.3,10.73826546]
[1750092502591,1.3247,2633.1,2632.8,3.2078]
[1750092502899,0.75935,2632.8,2632.6,6.264]
[1750092503089,3.2078,2632.8,2632.6,6.264]
[1750092503400,1.3247,2632.7,2632.6,6.264]
[1750092503999,1.3247,2632.7,2632.5,0.75942]
[1750092504302,1.3247,2632.7,2632.6,0.7594]
[1750092504599,1.3247,2632.7,2632.4,0.00569703]
[1750092504798,1.3247,2632.7,2632.5,0.75942]
[1750092505599,1.3247,2632.7,2632.4,0.00569703]
[1750092505600,1.3247,2632.7,2632.4,0.76513703]
[1750092506002,1.3247,2632.7,2632.4,7.02813703]
[1750092506202,1.3247,2632.7,2632.5,0.75943]
[1750092507096,1.3247,2632.7,2632.4,6.26869703]
[1750092507296,0.679,2632.6,2632.5,0.75942]
[1750092508704,3.2078,2632.8,2632.7,0.75938]
[1750092509098,0.68469703,2633.0,2632.9,0.75932]
[1750092509302,0.68469703,2633.0,2632.9,7.02232]
[1750092510297,0.68469703,2633.0,2632.9,6.263]
[1750092510502,7.01399703,2633.0,2632.4,0.00569703]
[1750092510707,3.2078,2632.8,2632.6,0.75939]
[1750092510904,1.3293,2632.7,2632.5,0.75942]
[1750092511097,0.6302,2632.6,2632.5,0.75942]
[1750092511905,0.6302,2632.6,2632.4,0.76514703]
[1750092512204,0.6504,2632.5,2632.4,7.02814703]
[1750092512398,1.9797,2632.5,2632.4,7.02814703]
[1750092512600,1.9797,2632.5,2632.4,0.00569703]
[1750092514603,1.9797,2632.5,2632.4,0.76516703]
[1750092515601,1.9797,2632.5,2632.4,0.00569703]
[1750092515804,5.1875,2632.5,2632.4,0.00569703]
[1750092516601,10.94694,2632.5,2632.4,0.00569703]
[1750092516806,0.75962,2631.9,2631.6,0.7597]
[1750092517006,3.2078,2631.8,2631.3,9.4708]
[1750092517205,5.7698,2631.8,2631.3,9.4708]
[1750092517805,5.7698,2631.8,2631.6,0.75969]
[1750092518007,4.4916,2631.8,2631.7,0.75967]
[1750092518599,3.2078,2631.8,2631.7,0.75967]
[1750092518914,1.2588,2632.2,2631.9,0.7596]
[1750092519306,1.2588,2632.2,2631.7,9.4708]
[1750092519510,1.2588,2632.2,2631.9,0.7596]
[1750092519808,2.01833,2632.2,2631.9,0.7596]
[1750092520009,3.37533,2632.2,2631.9,0.7596]
[1750092520209,8.29005546,2632.0,2631.7,0.75966]
[1750092520415,0.75958,2632.1,2631.7,0.75965]
[1750092520610,1.357,2632.1,2631.4,11.44818]
[1750092520806,2.11656,2632.1,2631.8,0.75963]
[1750092521211,2.11656,2632.1,2631.7,0.75965]
[1750092522112,2.11656,2632.1,2631.8,0.75964]
[1750092522413,0.75959,2632.0,2631.7,0.75965]
[1750092522809,0.75962,2631.9,2631.6,0.75968]
[1750092523114,0.7596,2632.0,2631.7,0.75967]
[1750092523508,0.7596,2632.0,2631.6,0.75968]
[1750092523708,0.7596,2632.0,2631.7,0.75967]
[1750092523911,4.4666,2632.2,2631.6,6.341]
[1750092524217,4.4666,2632.2,2631.9,0.75959]
[1750092524513,4.4666,2632.2,2631.8,0.75962]
[1750092524713,5.22613,2632.2,2631.8,0.75962]
[1750092524914,4.4666,2632.2,2631.7,1.3029]
[1750092525116,4.4666,2632.2,2632.1,0.75956]
[1750092525318,3.8532,2632.2,2632.1,0.75956]
[1750092526212,3.2078,2632.2,2632.0,7.10058]
[1750092526408,3.2078,2632.2,2632.1,0.75956]
[1750092526606,3.2078,2632.2,2632.1,7.10056]
[1750092529404,3.2078,2632.2,2632.1,7.16793406]
[1750092530619,3.2078,2632.2,2632.1,0.82693406]
[1750092534317,3.2078,2632.5,2632.4,0.75947]
[1750092534624,3.2078,2632.5,2632.4,7.10047]
[1750092534817,0.75937,2632.8,2632.5,0.75942]
[1750092535009,5.8526,2632.9,2632.4,6.341]
[1750092535214,0.75941,2632.7,2632.4,7.10045]
[1750092535412,15.28141546,2632.9,2632.4,7.10045]
[1750092535613,0.75942,2632.6,2632.4,7.10045]
[1750092535809,0.75942,2632.6,2632.4,0.75945]
[1750092536216,0.7594,2632.7,2632.5,0.75944]
[1750092536420,1.3614,2632.6,2632.5,0.75944]
[1750092536623,12.02166546,2632.9,2632.6,0.75939]
[1750092536624,0.75937,2632.8,2632.6,0.75939]
[1750092536822,0.75937,2632.8,2632.7,0.75939]
[1750092537223,4.4912,2632.9,2632.5,1.89862]
[1750092537416,5.756,2632.9,2632.8,0.75936]
[1750092537617,5.756,2632.9,2632.4,6.341]
[1750092537618,0.7594,2632.7,2632.4,6.341]
[1750092537820,0.75937,2632.8,2632.7,0.75939]
[1750092538021,2.02417,2632.8,2632.7,0.75939]
[1750092538428,0.75939,2632.7,2632.6,0.7594]
[1750092538615,1.2648,2632.7,2632.6,0.7594]
[1750092540220,4.4912,2632.9,2632.8,0.75936]
[1750092542029,3.2078,2632.9,2632.8,7.10036]
[1750092542321,0.00569703,2633.0,2632.9,0.75933]
[1750092542516,0.00569703,2633.0,2632.9,1.98953]
[1750092543827,0.75934,2632.9,2632.7,7.10506703]
[1750092544120,0.6624,2632.8,2632.7,7.10508703]
[1750092544325,0.00569703,2633.0,2632.9,0.75933]
[1750092545331,0.00569703,2633.0,2632.9,2.04373]
[1750092545624,0.00569703,2633.0,2632.9,0.75933]
[1750092545823,0.00569703,2633.0,2632.9,7.09933]
[1750092547724,0.61909703,2633.0,2632.9,7.09933]
[1750092549026,0.00569703,2633.0,2632.9,7.09933]
[1750092550223,0.00569703,2633.0,2632.9,0.75933]
[1750092550524,0.00569703,2633.0,2632.9,7.04133]
[1750092551425,0.00569703,2633.0,2632.9,0.75933]
[1750092554430,0.00569703,2633.0,2632.9,7.04133]
[1750092555230,0.00569703,2633.0,2632.9,0.75933]
[1750092555429,0.00569703,2633.0,2632.9,7.04133]
[1750092556731,0.00569703,2633.0,2632.9,8.95933]
[1750092557331,0.00569703,2633.0,2632.9,9.58593]
[1750092557531,0.00569703,2633.0,2632.9,17.11639546]
[1750092558229,0.00569703,2633.0,2632.9,0.75933]
[1750092558422,0.75933,2632.9,2632.8,0.06737406]
[1750092558630,4.5059,2632.9,2632.8,0.06737406]
[1750092558830,0.6358,2632.9,2632.8,0.82673406]
[1750092559332,0.00569703,2633.0,2632.9,0.75933]
[1750092560933,0.00569703,2633.0,2632.9,0.82670406]
[1750092563436,0.00569703,2633.0,2632.9,2.12770406]
[1750092564434,0.00569703,2633.0,2632.9,7.12770406]
[1750092564630,7.03e-06,2633.0,2632.9,33.84810373]
[1750092564836,7.03e-06,2633.0,2632.9,30.82870406]
[1750092566637,7.03e-06,2633.0,2632.9,34.601962]
[1750092569234,0.6521,2633.9,2633.8,0.75907]
[1750092570134,3.21349703,2634.1,2634.0,0.75901]
[1750092570335,0.00569703,2634.1,2634.0,0.75901]
[1750092570935,7.03e-06,2634.1,2634.0,0.75901]
[1750092571146,7.03e-06,2634.1,2634.0,1.43231]
[1750092571343,7.03e-06,2634.1,2634.0,4.45368059]
[1750092571643,7.03e-06,2634.1,2634.0,1.43231]
[1750092571842,7.03e-06,2634.1,2634.0,6.43231]
[1750092572541,7.03e-06,2634.1,2634.0,36.44631]
[1750092572741,7.03e-06,2634.1,2634.0,31.44631]
[1750092574744,7.03e-06,2634.1,2634.0,36.44631]
[1750092575247,7.03e-06,2634.1,2634.0,36.51368406]
[1750092578955,7.03e-06,2634.1,2634.0,36.46468406]
[1750092579554,7.03e-06,2634.1,2634.0,6.49968406]
[1750092579754,7.03e-06,2634.1,2634.0,36.46068406]
[1750092580246,7.03e-06,2634.1,2634.0,1.49968406]
[1750092580451,7.03e-06,2634.1,2634.0,34.66548406]
[1750092580654,7.03e-06,2634.1,2634.0,33.99218406]
[1750092581656,7.03e-06,2634.1,2634.0,0.82638406]
[1750092581857,7.03e-06,2634.1,2634.0,30.77938406]
[1750092582150,7.03e-06,2634.1,2634.0,7.10938406]
[1750092582352,7.03e-06,2634.1,2634.0,30.77238406]
[1750092582953,7.03e-06,2634.1,2634.0,0.82638406]
[1750092583154,7.03e-06,2634.1,2634.0,24.49638406]
[1750092583854,7.03e-06,2634.1,2634.0,0.82638406]
[1750092584052,7.03e-06,2634.1,2634.0,24.49638406]
[1750092584656,7.03e-06,2634.1,2634.0,27.70418406]
[1750092585558,7.03e-06,2634.1,2634.0,4.03418406]
[1750092585852,7.03e-06,2634.1,2634.0,33.97618406]
[1750092586059,7.03e-06,2634.1,2634.0,27.69218406]
[1750092586560,7.03e-06,2634.1,2634.0,4.03418406]
[1750092586764,7.03e-06,2634.1,2634.0,27.69218406]
[1750092587456,7.03e-06,2634.1,2634.0,0.82638406]
[1750092587655,7.03e-06,2634.1,2634.0,24.48138406]
[1750092588557,7.03e-06,2634.1,2634.0,0.82638406]
[1750092590356,7.03e-06,2634.1,2634.0,8.35684952]
[1750092590753,7.03e-06,2634.1,2634.0,11.56464952]
[1750092596860,7.03e-06,2634.1,2634.0,8.01271279]
[1750092597563,7.03e-06,2634.1,2634.0,11.03408338]
[1750092599764,7.03e-06,2634.1,2634.0,34.61808338]
[1750092600971,7.03e-06,2634.1,2634.0,11.03408338]
[1750092601167,7.03e-06,2634.1,2634.0,34.61008338]
[1750092601575,7.03e-06,2634.1,2634.0,3.84775465]
[1750092601877,8.97853576,2634.1,2634.0,0.06737406]
[1750092602177,8.97853576,2634.1,2633.7,6.22917059]
[1750092602178,8.97853576,2634.1,2633.5,1.89786]
[1750092602379,0.75905,2633.9,2633.7,0.75908]
[1750092602676,1.9807,2633.8,2633.7,0.75908]
[1750092602880,1.9807,2633.8,2633.3,3.2078]
[1750092603179,3.2078,2633.7,2633.6,0.75918]
[1750092603579,10.28997,2633.7,2633.6,0.75918]
[1750092603782,10.28997,2633.7,2633.5,0.7592]
[1750092604074,10.28997,2633.7,2633.2,0.75932]
[1750092604075,0.75928,2633.4,2633.2,0.75932]
[1750092604280,8.44922873,2633.3,2633.2,0.75933]
[1750092604480,1.2629,2633.3,2633.2,4.73785873]
[1750092604778,1.2629,2633.7,2633.6,0.75921]
[1750092605185,1.942,2633.7,2633.6,0.75921]
[1750092605980,0.6791,2633.7,2633.6,0.75921]
[1750092606176,0.6577,2633.8,2633.7,0.75918]
[1750092606884,3.20780703,2634.1,2634.0,0.75909]
[1750092607382,7.03e-06,2634.1,2634.0,0.75909]
[1750092607777,7.03e-06,2634.1,2634.0,0.82646406]
[1750092608784,7.03e-06,2634.1,2634.0,8.35413857]
[1750092610484,7.03e-06,2634.1,2634.0,0.82646406]
[1750092619892,7.03e-06,2634.1,2634.0,8.35413857]
[1750092620396,7.03e-06,2634.1,2634.0,0.82646406]
[1750092622691,7.03e-06,2634.1,2634.0,3.84783465]
[1750092622890,7.03e-06,2634.1,2634.0,2.06526406]
[1750092623693,7.03e-06,2634.1,2634.0,25.60126406]
[1750092624690,7.03e-06,2634.1,2634.0,25.90045423]
[1750092624896,7.03e-06,2634.1,2634.0,25.60126406]
[1750092625697,7.03e-06,2634.1,2634.0,2.06526406]
[1750092625991,7.03e-06,2634.1,2634.0,0.82646406]